fUST/lending_fUST_20251006
["ID","MTS","AMOUNT","RATE_DAILY","PERIOD"]
[389618470,1759750820971,-221.540205,0.000189,2]
[389618471,1759750820997,-221.540205,0.000189,2]
[389618472,1759750821021,-221.540205,0.000189,2]
[389618473,1759750821046,-221.540205,0.000189,2]
[389618474,1759750821069,-221.540205,0.000189,2]
[389618475,1759750821093,-221.540205,0.000189,2]
[389618476,1759750821117,-151.0,0.000189,2]
[389618477,1759750821141,-151.0,0.000189,2]
[389618478,1759750821164,-221.540205,0.000189,2]
[389618479,1759750821188,-151.0,0.000189,2]
[389618480,1759750821216,-221.540205,0.000189,2]
[389618481,1759750821242,-151.0,0.000189,2]
[389618482,1759750821266,-221.540205,0.000189,2]
[389618483,1759750821300,-151.0,0.000189,2]
[389618484,1759750821328,-221.540203,0.000189,2]
[389618485,1759750821354,-151.0,0.000189,2]
[389618486,1759750821379,-151.0,0.000189,2]
[389618487,1759750821402,-151.0,0.000189,2]
[389618488,1759750821426,-151.0,0.000189,2]
[389618489,1759750821454,-151.0,0.000189,2]
[389618490,1759750821478,-151.0,0.000189,2]
[389618491,1759750821502,-151.0,0.000189,2]
[389618492,1759750821531,-151.0,0.000189,2]
[389618493,1759750821556,-151.0,0.000189,2]
[389618494,1759750821581,-273.964098,0.000189,2]
[389618495,1759750821605,-207.350752,0.000189,2]
[389618496,1759750821631,-207.350752,0.000189,2]
[389618497,1759750821663,-207.350752,0.000189,2]
[389618498,1759750821883,-207.350752,0.000189,2]
[389618499,1759750821909,-207.350752,0.000189,2]
[389618500,1759750821934,-207.350752,0.000189,2]
[389618501,1759750821959,-207.350752,0.000189,2]
[389618502,1759750821985,-207.350752,0.000189,2]
[389618503,1759750822010,-207.350752,0.000189,2]
[389618504,1759750822034,-207.350752,0.000189,2]
[389618505,1759750822057,-207.350752,0.000189,2]
[389618506,1759750822082,-207.350752,0.000189,2]
[389618507,1759750822106,-207.350752,0.000189,2]
[389618508,1759750822132,-207.350752,0.000189,2]
[389618509,1759750822158,-207.350752,0.000189,2]
[389618510,1759750822183,-207.350752,0.000189,2]
[389618511,1759750822209,-207.350752,0.000189,2]
[389618512,1759750822232,-151.0,0.000189,2]
[389618513,1759750822256,-207.350752,0.000189,2]
[389618514,1759750822280,-151.0,0.000189,2]
[389618515,1759750822304,-207.350752,0.000189,2]
[389618516,1759750822328,-151.0,0.000189,2]
[389618517,1759750822352,-207.350753,0.000189,2]
[389618518,1759750822375,-151.0,0.000189,2]
[389618519,1759750822398,-151.0,0.000189,2]
[389618520,1759750822423,-151.0,0.000189,2]
[389618521,1759750822449,-151.0,0.000189,2]
[389618522,1759750822473,-151.0,0.000189,2]
[389618523,1759750822497,-151.0,0.000189,2]
[389618524,1759750822521,-151.0,0.000189,2]
[389618525,1759750822545,-151.0,0.000189,2]
[389618526,1759750822569,-151.0,0.000189,2]
[389618527,1759750822594,-257.990472,0.000189,2]
[389618528,1759750822620,-151.0,0.000189,2]
[389618529,1759750822646,-151.0,0.000189,2]
[389618530,1759750822668,-151.0,0.000189,2]
[389618531,1759750822693,-159.909664,0.000189,2]
[389618532,1759750822721,-151.0,0.000189,2]
[389618533,1759750822746,-151.0,0.000189,2]
[389618534,1759750822769,-151.0,0.000189,2]
[389618535,1759750822794,-151.0,0.000189,2]
[389618536,1759750822818,-167.838168,0.000189,2]
[389618537,1759750822841,-151.0,0.000189,2]
[389618538,1759750822864,-152.387048,0.000189,2]
[389618539,1759750822888,-151.0,0.000189,2]
[389618540,1759750822912,-151.0,0.000189,2]
[389618541,1759750822935,-151.0,0.000189,2]
[389618542,1759750822961,-151.0,0.000189,2]
[389618543,1759750822984,-151.0,0.000189,2]
[389618544,1759750823008,-151.0,0.000189,2]
[389618545,1759750823032,-151.0,0.000189,2]
[389618546,1759750823060,-151.0,0.000189,2]
[389618547,1759750823088,-151.0,0.000189,2]
[389618548,1759750823113,-151.0,0.000189,2]
[389618549,1759750823137,-151.0,0.000189,2]
[389618550,1759750823161,-151.0,0.000189,2]
[389618551,1759750823185,-151.0,0.000189,2]
[389618552,1759750823212,-151.0,0.000189,2]
[389618553,1759750823237,-151.0,0.000189,2]
[389618554,1759750823262,-151.0,0.000189,2]
[389618555,1759750823285,-151.0,0.000189,2]
[389618556,1759750823308,-290.740404,0.000189,2]
[389618557,1759750823336,-151.0,0.000189,2]
[389618558,1759750823360,-151.0,0.000189,2]
[389618559,1759750823384,-198.433024,0.000189,2]
[389618560,1759750823409,-188.211396,0.000189,2]
[389618561,1759750823435,-188.211396,0.000189,2]
[389618562,1759750823460,-188.211396,0.000189,2]
[389618563,1759750823485,-188.211396,0.000189,2]
[389618564,1759750823511,-188.211396,0.000189,2]
[389618565,1759750823536,-188.211396,0.000189,2]
[389618566,1759750823564,-188.211396,0.000189,2]
[389618567,1759750823589,-188.211396,0.000189,2]
[389618568,1759750823614,-188.211396,0.000189,2]
[389618569,1759750823643,-151.0,0.000189,2]
[389618570,1759750823668,-188.211396,0.000189,2]
[389618571,1759750823694,-151.0,0.000189,2]
[389618572,1759750823724,-188.211396,0.000189,2]
[389618573,1759750823750,-151.0,0.000189,2]
[389618574,1759750823775,-188.211396,0.000189,2]
[389618575,1759750823799,-151.0,0.000189,2]
[389618576,1759750823826,-188.211396,0.000189,2]
[389618577,1759750823851,-161.756189,0.000189,2]
[389618578,1759750823876,-188.211396,0.000189,2]
[389618579,1759750823901,-188.211396,0.000189,2]
[389618580,1759750823928,-188.211396,0.000189,2]
[389618581,1759750823954,-188.211396,0.000189,2]
[389618582,1759750823989,-188.211396,0.000189,2]
[389618583,1759750824015,-188.211396,0.000189,2]
[389618584,1759750824043,-188.211396,0.000189,2]
[389618585,1759750824068,-151.0,0.000189,2]
[389618586,1759750824094,-151.0,0.000189,2]
[389618587,1759750824119,-151.0,0.000189,2]
[389618588,1759750824144,-151.388318,0.000189,2]
[389618589,1759750824169,-151.0,0.000189,2]
[389618590,1759750824193,-151.0,0.000189,2]
[389618591,1759750824220,-151.0,0.000189,2]
[389618592,1759750824249,-151.0,0.000189,2]
[389618593,1759750824276,-151.0,0.000189,2]
[389618594,1759750824300,-151.0,0.000189,2]
[389618595,1759750824323,-151.0,0.000189,2]
[389618596,1759750824347,-151.0,0.000189,2]
[389618597,1759750824372,-151.0,0.000189,2]
[389618598,1759750824398,-151.0,0.000189,2]
[389618599,1759750824423,-151.0,0.000189,2]
[389618600,1759750824449,-151.0,0.000189,2]
[389618601,1759750824473,-151.0,0.000189,2]
[389618602,1759750824497,-151.0,0.000189,2]
[389618603,1759750824522,-151.0,0.000189,2]
[389618604,1759750824545,-151.0,0.000189,2]
[389618605,1759750824568,-151.0,0.000189,2]
[389618606,1759750824592,-151.0,0.000189,2]
[389618607,1759750824616,-151.0,0.000189,2]
[389618608,1759750824643,-191.29322,0.000189,2]
[389618609,1759750824666,-151.0,0.000189,2]
[389618610,1759750824690,-151.0,0.000189,2]
[389618611,1759750824718,-151.0,0.000189,2]
[389618612,1759750824745,-151.0,0.000189,2]
[389618613,1759750824769,-151.0,0.000189,2]
[389618614,1759750824792,-151.0,0.000189,2]
[389618615,1759750824817,-151.0,0.000189,2]
[389618616,1759750824840,-151.0,0.000189,2]
[389618617,1759750824864,-151.0,0.000189,2]
[389618618,1759750824892,-151.0,0.000189,2]
[389618619,1759750824917,-151.0,0.000189,2]
[389618620,1759750824942,-154.796896,0.000189,2]
[389618621,1759750824967,-151.0,0.000189,2]
[389618622,1759750824990,-151.0,0.000189,2]
[389618623,1759750825013,-151.0,0.000189,2]
[389618624,1759750825038,-151.0,0.000189,2]
[389618625,1759750825063,-316.052145,0.000189,2]
[389618626,1759750825088,-316.052145,0.000189,2]
[389618627,1759750825114,-316.052145,0.000189,2]
[389618628,1759750825139,-151.0,0.000189,2]
[389618629,1759750825313,-316.052145,0.000189,2]
[389618630,1759750825340,-151.0,0.000189,2]
[389618631,1759750825364,-316.052145,0.000189,2]
[389618632,1759750825389,-151.0,0.000189,2]
[389618633,1759750825412,-316.052145,0.000189,2]
[389618634,1759750825438,-204.40009,0.000189,2]
[389618635,1759750825463,-316.052145,0.000189,2]
[389618636,1759750825488,-316.052145,0.000189,2]
[389618637,1759750825514,-316.052145,0.000189,2]
[389618638,1759750825539,-316.052145,0.000189,2]
[389618639,1759750825563,-316.052145,0.000189,2]
[389618640,1759750825587,-316.052145,0.000189,2]
[389618641,1759750825612,-316.052145,0.000189,2]
[389618642,1759750825642,-316.052145,0.000189,2]
[389618643,1759750825667,-316.052145,0.000189,2]
[389618644,1759750825692,-316.052145,0.000189,2]
[389618645,1759750825718,-316.052145,0.000189,2]
[389618646,1759750825743,-316.052145,0.000189,2]
[389618647,1759750825768,-316.052145,0.000189,2]
[389618648,1759750825795,-316.052145,0.000189,2]
[389618649,1759750825820,-151.0,0.000189,2]
[389618650,1759750825844,-151.0,0.000189,2]
[389618651,1759750825868,-151.0,0.000189,2]
[389618652,1759750825892,-151.0,0.000189,2]
[389618653,1759750825917,-151.0,0.000189,2]
[389618654,1759750825943,-151.0,0.000189,2]
[389618655,1759750825969,-151.0,0.000189,2]
[389618656,1759750825993,-151.0,0.000189,2]
[389618657,1759750826019,-151.0,0.000189,2]
[389618658,1759750826047,-151.0,0.000189,2]
[389618659,1759750826072,-219.916481,0.000189,2]
[389618660,1759750826098,-2549.02592,0.000189,2]
[389618661,1759750826123,-2549.02592,0.000189,2]
[389618662,1759750826148,-2549.02592,0.000189,2]
[389618663,1759750826174,-2549.02592,0.000189,2]
[389618664,1759750826199,-2549.02592,0.000189,2]
[389618665,1759750826225,-2549.02592,0.000189,2]
[389618666,1759750826249,-2549.02592,0.000189,2]
[389618667,1759750826273,-2549.02592,0.000189,2]
[389618668,1759750826298,-2549.02592,0.000189,2]
[389618669,1759750826323,-2549.02592,0.000189,2]
[389618670,1759750826348,-2549.02592,0.000189,2]
[389618671,1759750826373,-2549.02592,0.000189,2]
[389618672,1759750826398,-2549.02592,0.000189,2]
[389618673,1759750826424,-2549.02592,0.000189,2]
[389618674,1759750826450,-2549.02592,0.000189,2]
[389618675,1759750826476,-2549.025918,0.000189,2]
[389618676,1759750826500,-170.652909,0.000189,2]
[389618677,1759750826525,-151.0,0.000189,2]
[389618678,1759750826550,-151.0,0.000189,2]
[389618679,1759750826574,-151.0,0.000189,2]
[389618680,1759750826599,-151.0,0.000189,2]
[389618681,1759750826625,-151.0,0.000189,2]
[389618682,1759750826657,-242.645926,0.000189,2]
[389618683,1759750826682,-151.0,0.000189,2]
[389618684,1759750826707,-151.0,0.000189,2]
[389618685,1759750826732,-151.0,0.000189,2]
[389618686,1759750826757,-190.706548,0.000189,2]
[389618687,1759750826782,-151.0,0.000189,2]
[389618688,1759750826807,-151.0,0.000189,2]
[389618689,1759750826831,-151.0,0.000189,2]
[389618690,1759750826856,-180.093326,0.000189,2]
[389618691,1759750826882,-151.0,0.000189,2]
[389618692,1759750826908,-151.0,0.000189,2]
[389618693,1759750826933,-186.388544,0.000189,2]
[389618694,1759750826958,-176.365585,0.000189,2]
[389618695,1759750826981,-151.0,0.000189,2]
[389618696,1759750827006,-151.0,0.000189,2]
[389618697,1759750827030,-151.0,0.000189,2]
[389618698,1759750827054,-151.0,0.000189,2]
[389618699,1759750827078,-151.0,0.000189,2]
[389618700,1759750827104,-2439.0,0.00018999,2]
[389618701,1759750827127,-200.0,0.00018999,2]
[389618702,1759750827151,-201.13072027,0.00018999,2]
[389618703,1759750827176,-6969.30150608,0.00019,2]
[389618704,1759750827200,-25000.0,0.00019,2]
[389618705,1759750827224,-162.7020905,0.00019,2]
[389618706,1759750827247,-25000.0,0.00019025,2]
[389618707,1759750827272,-25000.0,0.0001905,2]
[389618708,1759750827296,-1309.91,0.00019075,2]
[389618709,1759750827321,-420.0,0.00019127,2]
[389618710,1759750827345,-151.0,0.00019163,2]
[389618711,1759750827369,-183.54901209,0.00019163,2]
[389618712,1759750827394,-978.0,0.00019163,2]
[389618713,1759750827420,-151.0,0.00019163,2]
[389618714,1759750827444,-151.0,0.00019163,2]
[389618715,1759750827469,-151.0,0.00019163,2]
[389618716,1759750827493,-151.0,0.00019163,2]
[389618717,1759750827518,-151.0,0.00019163,2]
[389618718,1759750827541,-198.0,0.00019163,2]
[389618719,1759750827566,-151.0,0.00019164,3]
[389618720,1759750827592,-151.0,0.00019164,3]
[389618721,1759750827617,-500.0,0.00019174,2]
[389618722,1759750827644,-151.697729,0.00019178,5]
[389618723,1759750827669,-379.0865448,0.00019253,2]
[389618724,1759750827695,-189.5432724,0.00019253,2]
[389618725,1759750827722,-189.5432724,0.00019253,2]
[389618726,1759750827746,-189.5432724,0.00019253,2]
[389618727,1759750827770,-379.8992734,0.00019253,2]
[389618728,1759750827796,-420.0,0.00019267,2]
[389618729,1759750827822,-600.0,0.00019379,2]
[389618730,1759750827851,-300.0,0.00019379,2]
[389618731,1759750827877,-300.0,0.00019379,2]
[389618732,1759750827906,-300.0,0.00019379,2]
[389618733,1759750827934,-300.0,0.00019379,2]
[389618734,1759750827959,-300.0,0.00019379,2]
[389618735,1759750827984,-300.0,0.00019379,2]
[389618736,1759750828010,-300.0,0.00019379,2]
[389618737,1759750828038,-300.0,0.00019379,2]
[389618738,1759750828064,-300.0,0.00019379,2]
[389618739,1759750828093,-300.0,0.00019379,2]
[389618740,1759750828119,-300.0,0.00019379,2]
[389618741,1759750828147,-300.0,0.00019379,2]
[389618742,1759750828172,-300.0,0.00019379,2]
[389618743,1759750828197,-300.0,0.00019379,2]
[389618744,1759750828226,-300.0,0.00019379,2]
[389618745,1759750828254,-3000.0,0.000194,2]
[389618746,1759750828278,-3000.0,0.0001941,2]
[389618747,1759750828302,-3000.0,0.0001942,2]
[389618748,1759750828327,-1000.0,0.00019421,2]
[389618749,1759750828351,-1000.0,0.00019421,2]
[389618750,1759750828376,-500.0,0.00019421,2]
[389618751,1759750828401,-500.0,0.00019421,2]
[389618752,1759750828424,-1000.0,0.00019421,2]
[389618753,1759750828449,-500.0,0.00019421,2]
[389618754,1759750828476,-406.558254,0.00019421,2]
[389618755,1759750828502,-500.0,0.00019421,2]
[389618756,1759750828529,-1000.0,0.00019421,2]
[389618757,1759750828556,-1000.0,0.00019421,2]
[389618758,1759750828722,-1000.0,0.00019421,2]
[389618759,1759750828749,-1000.0,0.00019421,2]
[389618760,1759750828780,-500.0,0.00019421,2]
[389618761,1759750828805,-1000.0,0.00019421,2]
[389618762,1759750828831,-1000.0,0.00019421,2]
[389618763,1759750828856,-1000.0,0.00019421,2]
[389618764,1759750828879,-1000.0,0.00019421,2]
[389618765,1759750828903,-3000.0,0.0001943,2]
[389618766,1759750828928,-19292.2273969,0.00019431,2]
[389618767,1759750828953,-151.0,0.00019437,2]
[389618768,1759750828980,-151.0,0.00019437,2]
[389618769,1759750829007,-978.0,0.00019437,2]
[389618770,1759750829032,-198.0,0.00019437,2]
[389618771,1759750829057,-198.0,0.00019437,2]
[389618772,1759750829081,-198.0,0.00019437,2]
[389618773,1759750829106,-151.0,0.00019437,2]
[389618774,1759750829130,-198.0,0.00019437,2]
[389618775,1759750829155,-203.0077614,0.00019438,3]
[389618776,1759750829180,-151.0,0.00019438,3]
[389618777,1759750829204,-3000.0,0.0001944,2]
[389618778,1759750829234,-500.0,0.00019448,2]
[389618779,1759750829259,-3000.0,0.0001945,2]
[389618780,1759750829283,-3000.0,0.0001946,2]
[389618781,1759750829307,-3000.0,0.0001947,2]
[389618782,1759750829331,-3000.0,0.0001948,2]
[389618783,1759750829356,-3000.0,0.0001949,2]
[389618784,1759750829380,-3000.0,0.000195,2]
[389618785,1759750829405,-3000.0,0.0001951,2]
[389618786,1759750829430,-3000.0,0.0001952,2]
[389618787,1759750829455,-444.0,0.00019527,2]
[389618788,1759750829484,-3000.0,0.0001953,2]
[389618789,1759750829509,-3000.0,0.0001954,2]
[389618790,1759750829534,-3000.0,0.0001955,2]
[389618791,1759750829562,-2439.0,0.0001956,2]
[389618792,1759750829586,-3000.0,0.0001956,2]
[389618793,1759750829610,-3117.767262,0.0001957,2]
[389618794,1759750829636,-168.0,0.00019579,2]
[389618795,1759750829666,-2041.58410714,0.0001963,2]
[389618796,1759750829690,-198.0,0.00019711,2]
[389618797,1759750829716,-978.0,0.00019711,2]
[389618798,1759750829742,-151.0,0.00019711,2]
[389618799,1759750829765,-151.0,0.00019712,3]
[389618800,1759750829791,-500.0,0.00019722,2]
[389618801,1759750829816,-166.0,0.00019825,2]
[389618802,1759750829840,-166.0,0.00019825,2]
[389618803,1759750829866,-468.0,0.00019927,2]
[389618804,1759750829891,-1500.0,0.00019968,2]
[389618805,1759750829915,-518.35789514,0.00019968,2]
[389618806,1759750829941,-1500.0,0.00019968,2]
[389618807,1759750829966,-1500.0,0.00019968,2]
[389618808,1759750829990,-1500.0,0.00019968,2]
[389618809,1759750830014,-1500.0,0.00019968,2]
[389618810,1759750830037,-1500.0,0.00019968,2]
[389618811,1759750830060,-1500.0,0.00019968,2]
[389618812,1759750830084,-1223.75108112,0.00019968,2]
[389618813,1759750830110,-632.56765264,0.00019968,2]
[389618814,1759750830134,-1500.0,0.00019968,2]
[389618815,1759750830158,-500.0,0.00019973,2]
[389618816,1759750830181,-500.0,0.00019973,2]
[389618817,1759750830204,-500.0,0.00019973,2]
[389618818,1759750830228,-500.42874683,0.00019973,2]
[389618819,1759750830251,-500.0,0.00019973,2]
[389618820,1759750830275,-500.0,0.00019973,2]
[389618821,1759750830298,-500.27430723,0.00019973,2]
[389618822,1759750830324,-500.0,0.00019973,2]
[389618823,1759750830350,-341.57966396,0.00019973,2]
[389618824,1759750830373,-500.0,0.00019973,2]
[389618825,1759750830396,-20006.03981059,0.00019979,2]
[389618826,1759750830422,-168.0,0.00019981,2]
[389618827,1759750830447,-168.0,0.00019981,2]
[389618828,1759750830474,-151.0,0.00019985,2]
[389618829,1759750830499,-978.0,0.00019985,2]
[389618830,1759750830524,-151.0,0.00019985,2]
[389618831,1759750830548,-199.47064046,0.00019986,3]
[389618832,1759750830572,-12500.0,0.00019991,7]
[389618833,1759750830597,-500.0,0.00019996,2]
[389618834,1759750830621,-200.0,0.00019999,2]
[389618835,1759750830648,-163.91726091,0.00019999,2]
[389618836,1759750830673,-383.64572592,0.00019999,2]
[389618837,1759750830698,-1000.0,0.0002,5]
[389618838,1759750830722,-229.30196174,0.0002,2]
[389618839,1759750830746,-14516.56567654,0.0002,2]
[389618840,1759750830770,-366.9356084,0.0002,2]
[389618841,1759750830794,-23000.0,0.0002,2]
[389618842,1759750830818,-84156.8733002,0.0002,2]
[389618843,1759750830842,-200.0961582,0.0002,2]
[389618844,1759750830867,-151.4697106,0.0002,2]
[389618845,1759750830902,-12500.0,0.0002,7]
[389618846,1759750830929,-533.6495537,0.0002,7]
[389618847,1759750830954,-160.0,0.0002,7]
[389618848,1759750830981,-293.61728183,0.0002,7]
[389618849,1759750832329,300.0,0.00019315,2]
[389618850,1759750832380,150.0,0.00019178,2]
[389618851,1759750832410,378.26617179,0.00019452,2]
[389618852,1759750832524,500.0,0.00018873,2]
[389618853,1759750832579,1500.0,0.00019968,2]
[389618854,1759750832640,1000.0,0.00019421,2]
[389618855,1759750833602,153.66,0.00018873,2]
[389618856,1759750833655,153.66,0.00019147,2]
[389618857,1759750834172,5000.0,0.0002,2]
[389618858,1759750834744,155.4584959,0.00018883,2]
[389618874,1759751244136,579.48,0.00027397,120]
[389618875,1759751244360,579.48,0.00027397,120]
[389618876,1759751244589,579.48,0.00027397,120]
[389618877,1759751244831,579.48,0.00027397,120]
[389618878,1759751245083,579.48,0.00027397,120]
[389618879,1759751245317,579.48,0.00027397,120]
[389618880,1759751245575,579.48,0.00027397,120]
[389618881,1759751245809,579.48,0.00027397,120]
[389618882,1759751246052,579.48,0.00027397,120]
[389618883,1759751246449,579.48,0.00027397,120]
[389618884,1759751246698,579.48,0.00027397,120]
[389618885,1759751246938,579.48,0.00027397,120]
[389618886,1759751247182,579.48,0.00027397,120]
[389618887,1759751247462,579.48,0.00027397,120]
[389618888,1759751247679,579.48,0.00027397,120]
[389618889,1759751247914,579.48,0.00027397,120]
[389618890,1759751248144,579.48,0.00027397,120]
[389618891,1759751248378,579.48,0.00027397,120]
[389618892,1759751248701,579.48,0.00027397,120]
[389618893,1759751248973,579.48,0.00027397,120]
[389618894,1759751249093,579.48,0.00027397,120]
[389618895,1759751249328,579.48,0.00027397,120]
[389618896,1759751254622,579.48,0.00027397,120]
[389618897,1759751254851,579.49011957,0.00027397,120]
[389618916,1759751373794,5000.0,0.0002012,9]
[389619019,1759751440263,-950.0,0.00018497,2]
[389619021,1759751440273,-300.0,0.00018497,2]
[389619024,1759751440283,-150.0,0.00018684,2]
[389619026,1759751440293,-500.0,0.00018873,2]
[389619028,1759751440302,-324.0,0.00018897,2]
[389619030,1759751440311,-348.0,0.00019297,2]
[389619032,1759751440320,-160.0,0.00019336,2]
[389619034,1759751440330,-533.6495537,0.00019347,2]
[389619036,1759751440339,-234.17717776,0.00019347,2]
[389619038,1759751440348,-293.61728183,0.00019347,2]
[389619040,1759751440361,-160.0,0.00019347,2]
[389619042,1759751440370,-1000.0,0.00019421,2]
[389619044,1759751440379,-168.0,0.00019458,2]
[389619046,1759751440389,-168.0,0.00019605,2]
[389619048,1759751440398,-168.0,0.00019653,2]
[389619050,1759751440407,-300.0,0.00019662,2]
[389619052,1759751440416,-5352.0,0.00019663,2]
[389619054,1759751440425,-372.0,0.00019697,2]
[389619056,1759751440435,-168.0,0.0001972,2]
[389619058,1759751440444,-168.0,0.00019812,2]
[389619060,1759751440453,-5352.0,0.00019815,2]
[389619090,1759751440711,-168.0,0.0001986,2]
[389619093,1759751440739,-168.0,0.00019863,2]
[389619095,1759751440748,-168.0,0.0001992,2]
[389619097,1759751440757,-168.0,0.00019948,2]
[389619099,1759751440766,-675.90177426,0.00019968,2]
[389619101,1759751440775,-3257.18221241,0.00019981,2]
[389619834,1759751449461,-15346.70148759,0.00019981,2]
[389619836,1759751449470,-5958.0634442,0.00019993,2]
[389619838,1759751449479,-168.0,0.00019994,2]
[389619840,1759751449488,-1032.59105143,0.0002,5]
[389619842,1759751449496,-168.0,0.00020011,2]
[389619843,1759751449506,-168.0,0.0002002,2]
[389619845,1759751449515,-583.62286917,0.00020045,2]
[389619847,1759751449524,-168.0,0.00020083,2]
[389619849,1759751449533,-168.0,0.00020083,2]
[389619851,1759751449542,-168.0,0.00020083,2]
[389619853,1759751449551,-396.0,0.00020097,2]
[389619855,1759751449560,-280.2,0.000201,2]
[389619857,1759751449570,-150.0,0.000201,2]
[389619859,1759751449579,-168.0,0.00020131,2]
[389619861,1759751449588,-5352.0,0.00020173,2]
[389619863,1759751449597,-168.0,0.00020179,2]
[389619865,1759751449605,-418.81889019,0.00020188,2]
[389619867,1759751449615,-1229.81115312,0.00020286,2]
[389619869,1759751449625,-39798.48154326,0.000203,2]
[389619871,1759751449635,-301.56041544,0.00020311,2]
[389619872,1759751449644,-2635.21,0.00020386,2]
[389619874,1759751449653,-420.0,0.00020497,2]
[389619876,1759751449663,-2002.48283603,0.00020516,2]
[389619878,1759751449672,-2000.0,0.00020516,2]
[389619880,1759751449683,-8752.40665492,0.00020529,2]
[389619882,1759751449693,-150.0,0.00020567,2]
[389619884,1759751449704,-150.0,0.00020567,2]
[389619886,1759751449714,-1372.11587152,0.0002061,2]
[389619888,1759751449723,-1229.81115311,0.00020635,2]
[389619890,1759751449732,-775.0,0.00020645,10]
[389619892,1759751449742,-300.0,0.00020654,2]
[389619894,1759751449751,-300.0,0.00020654,2]
[389619896,1759751449761,-300.0,0.00020654,2]
[389619898,1759751449770,-300.0,0.00020654,2]
[389619900,1759751449779,-300.0,0.00020654,2]
[389619902,1759751449788,-300.0,0.00020654,2]
[389619904,1759751449798,-300.0,0.00020654,2]
[389619906,1759751449807,-300.0,0.00020654,2]
[389619908,1759751449816,-300.0,0.00020654,2]
[389619910,1759751449826,-300.0,0.00020654,2]
[389619912,1759751449834,-300.0,0.00020654,2]
[389619914,1759751449843,-300.0,0.00020654,2]
[389619916,1759751449852,-300.0,0.00020654,2]
[389619918,1759751449861,-300.0,0.00020654,2]
[389619919,1759751449870,-300.0,0.00020654,2]
[389619921,1759751449879,-227.94469675,0.00020654,2]
[389619923,1759751449890,-2200.0,0.00020655,2]
[389619925,1759751449899,-302.80975651,0.00020695,2]
[389619927,1759751449909,-600.0,0.00020705,2]
[389619929,1759751449918,-341.587,0.00020783,2]
[389619931,1759751449928,-155.0,0.00020789,2]
[389619933,1759751449938,-2927.0,0.0002087,2]
[389619935,1759751449947,-980.0,0.0002087,2]
[389619937,1759751449956,-630.0,0.0002087,2]
[389619939,1759751449966,-2158.0,0.0002087,2]
[389619941,1759751449979,-4000.0,0.00020888,2]
[389619942,1759751449988,-444.0,0.00020897,2]
[389619944,1759751449997,-253.06882797,0.000209,2]
[389619946,1759751450007,-775.0,0.00020919,10]